bitfinex/quotes_BTCUSD_20251031
["timestamp","ask_amount","ask_price","bid_price","bid_amount"]
[1761892037025,1.1537741,109830.0,109820.0,0.280097]
[1761892037222,0.75914205,109830.0,109820.0,0.280097]
[1761892037638,0.75914205,109830.0,109820.0,0.283097]
[1761892037848,1.1537741,109830.0,109820.0,0.283097]
[1761892038894,1.28124382,109830.0,109820.0,0.283097]
[1761892039974,1.1537741,109830.0,109820.0,0.283097]
[1761892040189,0.73463205,109830.0,109820.0,0.283097]
[1761892041209,0.34,109830.0,109820.0,0.283097]
[1761892041414,0.73463205,109830.0,109820.0,0.283097]
[1761892044431,0.74973205,109830.0,109820.0,0.283097]
[1761892047155,0.73463205,109830.0,109820.0,0.283097]
[1761892052279,0.34,109830.0,109820.0,0.283097]
[1761892052925,0.39463205,109840.0,109830.0,0.12746972]
[1761892053070,0.73463205,109840.0,109830.0,0.28520869]
[1761892053282,0.73463205,109840.0,109830.0,0.26699873]
[1761892054052,0.73463205,109840.0,109830.0,0.26899873]
[1761892055478,0.73463205,109840.0,109830.0,0.26999873]
[1761892068337,1.1292641,109840.0,109830.0,0.26999873]
[1761892068984,1.1454741,109840.0,109830.0,0.24563873]
[1761892070713,1.1454741,109840.0,109830.0,0.26840873]
[1761892072970,1.1572441,109840.0,109830.0,0.24563873]
[1761892075470,0.76267174,109840.0,109830.0,0.24563873]
[1761892079683,0.42267174,109840.0,109830.0,0.26840873]
[1761892080380,0.39469174,109840.0,109830.0,0.26840873]
[1761892081309,0.39469174,109840.0,109830.0,0.24563873]
[1761892081574,0.39469174,109840.0,109830.0,0.26840873]
[1761892082257,0.18768917,109840.0,109830.0,0.26840873]
[1761892082482,0.20389917,109840.0,109830.0,0.22919873]
[1761892082710,0.21566917,109840.0,109830.0,0.22919873]
[1761892082918,0.21566917,109840.0,109830.0,0.24554873]
[1761892083312,0.21566917,109840.0,109830.0,0.26831873]
[1761892083656,0.19945917,109840.0,109830.0,0.26831873]
[1761892083869,0.18768917,109840.0,109830.0,0.26831873]
[1761892084277,0.39469174,109840.0,109830.0,0.26831873]
[1761892085596,0.42267174,109840.0,109830.0,0.24554873]
[1761892085800,0.42267174,109840.0,109830.0,0.22919873]
[1761892086128,0.44616174,109840.0,109830.0,0.22919873]
[1761892087312,0.44616174,109840.0,109830.0,0.22028873]
[1761892087807,0.44616174,109840.0,109830.0,0.2571654]
[1761892089229,0.57361986,109840.0,109830.0,0.12969568]
[1761892089388,0.57361986,109840.0,109830.0,0.2571654]
[1761892092188,0.57361986,109840.0,109830.0,0.2824254]
[1761892092392,0.55012986,109840.0,109830.0,0.2824254]
[1761892092867,0.57361986,109840.0,109830.0,0.2571654]
[1761892093831,0.44616174,109840.0,109830.0,0.2571654]
[1761892098273,0.57361986,109840.0,109830.0,0.12969568]
[1761892098607,0.57361986,109840.0,109830.0,0.2571654]
[1761892099498,0.57361986,109840.0,109830.0,0.12969568]
[1761892099708,0.57361986,109840.0,109830.0,0.2571654]
[1761892099925,0.47352657,109840.0,109830.0,0.2571654]
[1761892100580,0.47352657,109840.0,109830.0,0.2660754]
[1761892100581,0.47447657,109840.0,109830.0,0.2660754]
[1761892100790,0.47447657,109840.0,109830.0,0.2571654]
[1761892100991,0.60193469,109840.0,109830.0,0.09281901]
[1761892101453,0.47447657,109840.0,109830.0,0.09281901]
[1761892101648,0.47447657,109840.0,109830.0,0.22028873]
[1761892101902,0.05534483,109840.0,109830.0,0.24538873]
[1761892102107,0.05534483,109840.0,109830.0,0.26920873]
[1761892102311,0.05534483,109840.0,109830.0,0.24538873]
[1761892102920,0.02736483,109840.0,109830.0,0.26920873]
[1761892104948,0.04259483,109840.0,109830.0,0.26920873]
[1761892105239,0.04259483,109840.0,109830.0,0.24538873]
[1761892105407,0.02736483,109840.0,109830.0,0.3109774]
[1761892105614,0.02736483,109840.0,109830.0,0.26920873]
[1761892109260,0.04259483,109840.0,109830.0,0.24538873]
[1761892111126,0.05477483,109840.0,109830.0,0.24538873]
[1761892111596,0.07921483,109840.0,109830.0,0.24538873]
[1761892113858,0.05477483,109840.0,109830.0,0.24538873]
[1761892114235,0.02736483,109840.0,109830.0,0.26920873]
[1761892119281,0.4076983,109850.0,109840.0,0.12745812]
[1761892119481,0.4321383,109850.0,109840.0,0.21727713]
[1761892119696,0.43506108,109850.0,109840.0,0.23346713]
[1761892119902,0.45029108,109850.0,109840.0,0.23346713]
[1761892120105,0.47473108,109850.0,109840.0,0.24237713]
[1761892120458,0.45029108,109850.0,109840.0,0.24237713]
[1761892121029,0.45029108,109850.0,109840.0,0.26619713]
[1761892121030,0.00082656,109850.0,109840.0,0.26619713]
[1761892121855,0.00082656,109850.0,109840.0,0.26919713]
[1761892123107,0.00082656,109850.0,109840.0,0.27119713]
[1761892133463,0.00082656,109850.0,109840.0,0.29855692]
[1761892133870,0.00082656,109850.0,109840.0,0.27119713]
[1761892137414,0.39535838,109850.0,109840.0,0.27119713]
[1761892140075,0.00082656,109850.0,109840.0,0.27119713]
[1761892140279,0.39535838,109850.0,109840.0,0.27119713]
[1761892140487,0.00082656,109850.0,109840.0,0.27119713]
[1761892140904,0.00082656,109850.0,109840.0,0.29855587]
[1761892141477,0.39453182,109860.0,109850.0,0.12744651]
[1761892141695,0.39453182,109860.0,109850.0,0.23285552]
[1761892141939,0.39453182,109860.0,109850.0,0.26257552]
[1761892142739,0.39453182,109860.0,109850.0,0.26557552]
[1761892143416,0.40960182,109860.0,109850.0,0.26557552]
[1761892144338,0.39453182,109860.0,109850.0,0.26557552]
[1761892146662,0.42189056,109860.0,109850.0,0.26557552]
[1761892146992,0.42211235,109860.0,109850.0,0.30941617]
[1761892147226,0.42211235,109860.0,109850.0,0.26557552]
[1761892148072,0.81664417,109860.0,109850.0,0.26557552]
[1761892151890,0.42211235,109860.0,109850.0,0.26557552]
[1761892152138,0.00022179,109860.0,109850.0,0.26557552]
[1761892152339,0.00022179,109860.0,109850.0,0.29293174]
[1761892155247,0.39475361,109860.0,109850.0,0.29293174]
[1761892155905,0.00022179,109860.0,109850.0,0.29293174]
[1761892157231,0.39475361,109860.0,109850.0,0.29293174]
[1761892158382,0.00022179,109860.0,109850.0,0.29293174]
[1761892159936,0.00022179,109860.0,109850.0,0.26557552]
[1761892160357,0.39475361,109860.0,109850.0,0.26557552]
[1761892160567,0.00022179,109860.0,109850.0,0.26557552]
[1761892163187,0.39475361,109860.0,109850.0,0.26557552]
[1761892165269,0.44475361,109860.0,109850.0,0.26557552]
[1761892172125,0.05022179,109860.0,109850.0,0.26557552]
[1761892172348,0.05022179,109860.0,109850.0,0.29293112]
[1761892174322,0.00022179,109860.0,109850.0,0.29293112]
[1761892176677,0.01022179,109860.0,109850.0,0.29293112]
[1761892177145,0.40475361,109860.0,109850.0,0.26557552]
[1761892195437,0.95462034,109860.0,109850.0,0.11535901]
[1761892196359,0.95462034,109860.0,109850.0,0.14001901]
[1761892198854,0.93819034,109860.0,109850.0,0.14001901]
[1761892199492,0.54371636,109860.0,109850.0,0.14001901]
[1761892200169,0.57107498,109860.0,109850.0,0.14001901]
[1761892200377,0.57107498,109860.0,109850.0,0.16856814]
[1761892200808,0.43217007,109860.0,109850.0,0.29601465]
[1761892203819,0.03758041,109860.0,109850.0,0.29601465]
[1761892204079,0.43217007,109860.0,109850.0,0.29601465]
[1761892207489,0.03758041,109860.0,109850.0,0.29601465]
[1761892207718,0.43217007,109860.0,109850.0,0.29601465]
[1761892211752,0.22447638,109860.0,109850.0,0.29601465]
[1761892211940,0.251835,109860.0,109850.0,0.29601465]
[1761892213291,0.02735862,109860.0,109850.0,0.29601465]
[1761892217720,0.86200249,109880.0,109870.0,0.12742331]
[1761892217967,0.86200249,109880.0,109870.0,0.24991197]
[1761892218177,0.00044345,109880.0,109870.0,0.28414161]
[1761892218389,0.00044345,109880.0,109870.0,0.15671866]
[1761892218390,0.34044345,109880.0,109870.0,0.15671866]
[1761892218599,0.87748483,109880.0,109870.0,0.13275866]
[1761892218817,0.94055846,109880.0,109870.0,0.11750866]
[1761892219028,0.94304267,109880.0,109870.0,0.12248866]
[1761892219204,0.91872267,109880.0,109870.0,0.13275866]
[1761892219490,0.94404267,109880.0,109870.0,0.13275866]
[1761892220192,0.94304267,109880.0,109870.0,0.13275866]
[1761892220381,0.91872267,109880.0,109870.0,0.13275866]
[1761892220589,0.91872267,109880.0,109870.0,0.13375866]
[1761892221458,0.37028129,109880.0,109870.0,0.28514197]
[1761892221652,0.36828129,109880.0,109870.0,0.28514197]
[1761892221841,0.77791095,109880.0,109870.0,0.28714197]
[1761892222046,0.90532267,109880.0,109870.0,0.28714197]
[1761892222486,0.90532267,109880.0,109870.0,0.13575866]
[1761892223338,0.90532267,109880.0,109870.0,0.15971866]
[1761892224382,0.51073301,109880.0,109870.0,0.15971866]
[1761892224595,0.77791095,109880.0,109870.0,0.28714197]
[1761892224798,0.76287095,109880.0,109870.0,0.28714197]
[1761892225195,0.36828129,109880.0,109870.0,0.28714197]
[1761892225459,0.76287095,109880.0,109870.0,0.28714197]
[1761892225677,0.36828129,109880.0,109870.0,0.28714197]
[1761892226731,0.49569301,109880.0,109870.0,0.15971866]
[1761892227185,0.76287095,109880.0,109870.0,0.28714197]
[1761892227391,0.89028267,109880.0,109870.0,0.28714197]
[1761892230148,0.76287095,109880.0,109870.0,0.28714197]
[1761892230411,0.42287095,109880.0,109870.0,0.28714197]
[1761892230634,0.02828129,109880.0,109870.0,0.28714197]
[1761892236923,0.00092766,109880.0,109870.0,0.28714197]
[1761892238088,0.39551732,109880.0,109870.0,0.28714197]
[1761892241748,0.1999125,109880.0,109870.0,0.28714197]
[1761892248436,0.56989844,109890.0,109870.0,0.28714197]
[1761892248642,0.58520683,109890.0,109880.0,0.11522901]
[1761892248854,0.58520683,109890.0,109880.0,0.14377814]
[1761892249728,0.19061717,109890.0,109880.0,0.27118986]
[1761892249933,0.55854683,109890.0,109880.0,0.29433986]
[1761892251340,0.55854683,109890.0,109880.0,0.16692814]
[1761892251876,0.54939237,109890.0,109880.0,0.16692814]
[1761892252080,0.54939237,109890.0,109880.0,0.29433986]
[1761892252564,0.42199073,109890.0,109880.0,0.29433986]
[1761892253941,0.42199073,109890.0,109880.0,0.29633986]
[1761892254145,0.42199073,109890.0,109880.0,0.29733986]
[1761892254317,0.42221242,109890.0,109880.0,0.29733986]
[1761892255709,0.02762276,109890.0,109880.0,0.29733986]
[1761892257586,0.42221242,109890.0,109880.0,0.29733986]
[1761892257779,0.54961254,109890.0,109880.0,0.29733986]
[1761892258502,0.42221242,109890.0,109880.0,0.29733986]
[1761892259226,0.12718442,109890.0,109880.0,0.29733986]
[1761892259436,0.55179945,109900.0,109880.0,0.29733986]
[1761892259651,0.57504945,109900.0,109880.0,0.29733986]
[1761892259873,0.02735268,109890.0,109880.0,0.29733986]
[1761892260084,0.02735268,109890.0,109880.0,0.28083986]
[1761892260287,0.02735268,109890.0,109880.0,0.27783986]
[1761892260502,0.1547528,109890.0,109880.0,0.29433986]
[1761892261194,0.54934246,109890.0,109880.0,0.16692814]
[1761892261402,0.54908747,109890.0,109880.0,0.16892814]
[1761892261824,0.56434747,109890.0,109880.0,0.16992814]
[1761892264996,1.02409192,109890.0,109880.0,0.003]
[1761892270140,0.62975725,109890.0,109880.0,0.003]
[1761892270354,1.02409192,109890.0,109880.0,0.003]
[1761892270581,3.39238554,109890.0,109880.0,0.003]
[1761892271046,3.41198818,109890.0,109880.0,0.003]
[1761892271273,3.50180719,109890.0,109880.0,0.003]
[1761892272550,3.50180719,109890.0,109880.0,0.002]
[1761892272769,0.00910083,109880.0,109850.0,0.03114817]
[1761892272977,0.91610425,109860.0,109850.0,0.12145139]
[1761892273182,0.94038425,109860.0,109850.0,0.11480139]
[1761892273316,0.96363425,109860.0,109850.0,0.11480139]
[1761892273520,0.96363425,109860.0,109850.0,0.12948753]
[1761892273935,0.99099446,109860.0,109850.0,0.12948753]
[1761892274146,0.96363425,109860.0,109850.0,0.12948753]
[1761892274717,0.96363425,109860.0,109850.0,0.13448753]
[1761892274890,0.94038425,109860.0,109850.0,0.13448753]
[1761892275438,0.94038425,109860.0,109850.0,0.11980139]
[1761892275783,0.97697065,109860.0,109850.0,0.11980139]
[1761892276002,0.58263598,109860.0,109850.0,0.11980139]
[1761892277066,0.57340982,109860.0,109850.0,0.11980139]
[1761892278061,0.60645937,109860.0,109850.0,0.11980139]
[1761892278403,0.60645937,109860.0,109850.0,0.13503153]
[1761892280371,0.57909913,109860.0,109850.0,0.13503153]
[1761892280701,0.9734338,109860.0,109850.0,0.01348238]
[1761892280905,1.3134338,109860.0,109850.0,0.00653238]
[1761892281217,1.34079631,109860.0,109850.0,0.00653238]
[1761892282076,1.34079631,109860.0,109850.0,0.00353238]
[1761892283012,1.34079631,109860.0,109850.0,0.00153238]
[1761892283303,1.34079631,109860.0,109850.0,0.00253238]
[1761892283947,1.34079631,109860.0,109850.0,0.00453238]
[1761892285391,1.34079631,109860.0,109850.0,0.02015238]
[1761892287796,1.34079631,109860.0,109850.0,0.00453238]
[1761892288616,0.55212697,109860.0,109850.0,0.00453238]
[1761892288833,1.34079631,109860.0,109850.0,0.00453238]
[1761892289151,1.34079631,109860.0,109850.0,0.02015238]
[1761892289540,1.34079631,109860.0,109850.0,0.00453238]
[1761892289765,1.34079631,109860.0,109850.0,0.02015238]
[1761892290202,0.55212697,109860.0,109850.0,0.02015238]
[1761892290412,1.34079631,109860.0,109850.0,0.02015238]
[1761892291021,0.91341209,109860.0,109850.0,0.03239862]
[1761892291665,0.93719209,109860.0,109850.0,0.03239862]
[1761892291867,1.33152676,109860.0,109850.0,0.01677862]
[1761892292948,0.54285742,109860.0,109850.0,0.01677862]
[1761892293201,0.54285742,109860.0,109850.0,0.02710238]
[1761892293202,0.91341209,109860.0,109850.0,0.02710238]
[1761892293384,0.15479742,109860.0,109850.0,0.14082139]
[1761892293596,0.15479742,109860.0,109850.0,0.66260257]
[1761892293597,0.12743491,109860.0,109850.0,0.66260257]
[1761892294036,0.12743491,109860.0,109850.0,0.2682679]
[1761892294242,0.15478352,109870.0,109850.0,0.66260257]
[1761892294454,0.54911819,109870.0,109860.0,0.13960901]
[1761892294661,0.88911819,109870.0,109860.0,0.13960901]
[1761892294910,0.90475819,109870.0,109860.0,0.11570901]
[1761892295138,0.94061819,109870.0,109860.0,0.10008901]
[1761892295360,0.94061819,109870.0,109860.0,0.08981901]
[1761892296019,0.12743491,109860.0,109850.0,0.00848238]
[1761892296257,0.96760425,109860.0,109850.0,0.09830139]
[1761892296468,0.96760425,109860.0,109850.0,0.11392139]
[1761892296705,0.96760425,109860.0,109850.0,0.00153238]
[1761892296911,1.70193892,109860.0,109850.0,0.00153238]
[1761892297122,3.87826386,109860.0,109850.0,0.00153238]
[1761892297538,3.89781198,109860.0,109850.0,0.00153238]
[1761892298180,3.93599426,109860.0,109850.0,0.00153238]
[1761892298389,4.02581327,109860.0,109850.0,0.00153238]
[1761892300549,4.02581327,109860.0,109850.0,1e-08]
[1761892300717,0.12749294,109810.0,109800.0,0.00891]
[1761892300877,0.54587761,109810.0,109800.0,0.0898674]
[1761892301075,0.56965761,109810.0,109800.0,0.13155348]
[1761892301353,0.56965761,109810.0,109800.0,0.14179486]
[1761892301566,0.56965761,109810.0,109800.0,0.11726486]
[1761892301816,0.56965761,109810.0,109800.0,0.00137977]
[1761892302012,0.59795123,109810.0,109800.0,0.00137977]
[1761892302173,0.59795123,109810.0,109800.0,0.00637977]
[1761892302547,0.59795123,109810.0,109800.0,0.00937977]
[1761892302754,0.54587761,109810.0,109800.0,0.02890977]
[1761892302951,0.53023761,109810.0,109800.0,0.0449692]
[1761892303159,0.54587761,109810.0,109800.0,0.0449692]
[1761892304012,0.17487294,109810.0,109800.0,0.0449692]
[1761892304241,0.56920761,109810.0,109800.0,0.0449692]
[1761892304412,0.56920761,109810.0,109800.0,0.0204392]
[1761892304619,0.56920761,109810.0,109800.0,0.00137977]
[1761892311215,0.15154294,109810.0,109800.0,0.01746977]
[1761892311387,0.56920761,109810.0,109800.0,0.01746977]
[1761892311587,0.56920761,109810.0,109800.0,0.00137977]
[1761892312203,0.54587761,109810.0,109800.0,0.05434977]
[1761892312553,0.54587761,109810.0,109800.0,0.02965977]
[1761892312955,0.56920761,109810.0,109800.0,0.04887332]
[1761892313156,0.56920761,109810.0,109800.0,0.02965977]
[1761892315957,0.59658225,109810.0,109800.0,0.02965977]
[1761892316156,0.59658225,109810.0,109800.0,0.01356977]
[1761892316422,0.56920761,109810.0,109800.0,0.01356977]
[1761892317185,0.59658225,109810.0,109800.0,0.01356977]
[1761892317436,0.56920761,109810.0,109800.0,0.01356977]
[1761892317787,0.59658225,109810.0,109800.0,0.01356977]
[1761892317993,0.56920761,109810.0,109800.0,0.01356977]
[1761892318193,0.59658225,109810.0,109800.0,0.01356977]
[1761892318574,0.56920761,109810.0,109800.0,0.01356977]
[1761892318908,0.59658225,109810.0,109800.0,0.01356977]
[1761892319280,0.56920761,109810.0,109800.0,0.00137977]
[1761892319456,0.59658225,109810.0,109800.0,0.00137977]
[1761892319772,0.56920761,109810.0,109800.0,0.00137977]
[1761892319972,0.59658225,109810.0,109800.0,0.00137977]
[1761892320712,0.56920761,109810.0,109800.0,0.00137977]
[1761892321529,0.56977513,109810.0,109800.0,0.00137977]
[1761892321713,1.04240008,109810.0,109800.0,0.00137977]
[1761892322332,1.06977782,109810.0,109800.0,0.00137977]
[1761892324173,1.07177782,109810.0,109800.0,0.00137977]
[1761892326655,0.54425068,109810.0,109800.0,0.00137977]
[1761892326861,0.93915287,109810.0,109800.0,0.00137977]
[1761892327071,0.52092068,109810.0,109800.0,0.02982977]
[1761892327320,0.49354294,109810.0,109800.0,0.05451977]
[1761892327471,0.49154294,109810.0,109800.0,0.05451977]
[1761892327670,0.46749294,109810.0,109800.0,0.07395893]
[1761892327879,0.48549294,109810.0,109800.0,0.07395893]
[1761892328346,0.87839513,109810.0,109800.0,0.07395893]
[1761892328641,0.90524513,109810.0,109800.0,0.00137977]
[1761892328870,0.51034294,109810.0,109800.0,0.00137977]
[1761892330178,0.51034294,109810.0,109800.0,0.00337977]
[1761892330765,0.51034294,109810.0,109800.0,0.00537977]
[1761892331516,0.90524513,109810.0,109800.0,0.00537977]
[1761892335674,1.02591392,109810.0,109800.0,0.00537977]
[1761892336312,1.02591392,109810.0,109800.0,0.00337977]
[1761892337051,1.05420754,109810.0,109800.0,0.00137977]
[1761892337383,1.05620754,109810.0,109800.0,0.00137977]
[1761892337734,0.51234294,109810.0,109800.0,0.00137977]
[1761892337951,0.90724513,109810.0,109800.0,0.00137977]
[1761892338169,0.12949294,109810.0,109800.0,0.14191878]
[1761892338374,0.56793513,109810.0,109800.0,0.09119878]
[1761892338927,0.17303294,109810.0,109800.0,0.09119878]
[1761892339126,0.17303294,109810.0,109800.0,0.11935152]
[1761892339358,0.17103294,109810.0,109800.0,0.11935152]
[1761892339577,0.56593513,109810.0,109800.0,0.00137977]
[1761892340795,0.56593513,109810.0,109800.0,0.00237977]
[1761892341291,0.56793513,109810.0,109800.0,0.00237977]
[1761892341804,0.56593513,109810.0,109800.0,0.00237977]
[1761892341920,0.90593513,109810.0,109800.0,0.00237977]
[1761892342129,0.90593513,109810.0,109800.0,0.05309977]
[1761892342130,0.46749294,109810.0,109800.0,0.05309977]
[1761892342345,0.46749294,109810.0,109800.0,0.07418502]
[1761892342542,0.46749294,109810.0,109800.0,0.20168957]
[1761892342840,0.46749294,109810.0,109800.0,0.07418502]
[1761892343042,0.34,109810.0,109800.0,0.29050858]
[1761892343667,0.02118498,109830.0,109810.0,0.12748799]
[1761892343877,0.13657585,109830.0,109820.0,0.02717]
[1761892344080,0.13657585,109830.0,109820.0,0.05072]
[1761892344483,0.47657585,109830.0,109820.0,0.05072]
[1761892344788,0.47657585,109830.0,109820.0,0.04872]
[1761892345981,0.47657585,109830.0,109820.0,0.04972]
[1761892346185,0.4765747,109830.0,109820.0,0.19828658]
[1761892346396,0.4765747,109830.0,109820.0,0.07080525]
[1761892348114,0.4765747,109830.0,109820.0,0.04972]
[1761892349020,0.4765747,109830.0,109820.0,0.0506074]
[1761892349232,0.87147689,109830.0,109820.0,0.0506074]
[1761892350653,1.27921908,109830.0,109820.0,0.0018874]
[1761892351023,3.3075127,109830.0,109820.0,0.0018874]
[1761892351245,3.42818149,109830.0,109820.0,0.0018874]
[1761892351427,3.5180005,109830.0,109820.0,0.0018874]
[1761892351993,3.5190005,109830.0,109820.0,0.0018874]
[1761892352420,3.5190005,109830.0,109820.0,0.0008874]
[1761892354277,3.53854975,109830.0,109820.0,0.0008874]
[1761892354487,3.5190005,109830.0,109820.0,0.0008874]
[1761892354897,3.53854804,109830.0,109820.0,0.0008874]
[1761892356736,3.53850258,109830.0,109820.0,0.0008874]
[1761892358036,3.55278429,109830.0,109820.0,0.0008874]
[1761892358253,3.46296528,109830.0,109820.0,0.0008874]
[1761892358900,3.44868357,109830.0,109820.0,0.0008874]
[1761892359590,3.42038995,109830.0,109820.0,0.0008874]
[1761892359807,3.44868357,109830.0,109820.0,0.0008874]
[1761892359988,3.53850258,109830.0,109820.0,0.0008874]
[1761892360191,3.51020896,109830.0,109820.0,0.0008874]
[1761892362377,3.5527843,109830.0,109820.0,0.0008874]
[1761892370284,3.52449068,109830.0,109820.0,0.0008874]
[1761892373515,3.5527843,109830.0,109820.0,0.0008874]
[1761892374004,3.52448842,109830.0,109820.0,0.0008874]
[1761892374207,3.55278204,109830.0,109820.0,0.0008874]
[1761892374683,3.55195869,109830.0,109820.0,0.0008874]
[1761892376072,3.52366507,109830.0,109820.0,0.0008874]
[1761892376941,3.30675727,109830.0,109820.0,0.0008874]
[1761892377599,3.31317727,109830.0,109820.0,0.0008874]
[1761892381461,3.31311543,109830.0,109820.0,0.0008874]
[1761892381876,0.91182416,109830.0,109820.0,0.0528374]
[1761892382063,0.89754244,109830.0,109820.0,0.0528374]
[1761892382711,0.89754244,109830.0,109820.0,0.05927114]
[1761892382712,0.89112244,109830.0,109820.0,0.05927114]
[1761892382948,0.87157716,109830.0,109820.0,0.0528374]
[1761892384575,0.87057716,109830.0,109820.0,0.0528374]
[1761892384697,0.47570589,109830.0,109820.0,0.0528374]
[1761892385064,0.87157716,109830.0,109820.0,0.0538374]
[1761892385499,0.47670589,109830.0,109820.0,0.07312014]
[1761892385712,0.34923617,109830.0,109820.0,0.29042048]
[1761892386364,0.34823617,109830.0,109820.0,0.29042048]
[1761892386598,0.47570589,109830.0,109820.0,0.29042048]
[1761892386813,0.47570589,109830.0,109820.0,0.16393915]
[1761892387218,0.87057716,109830.0,109820.0,0.16393915]
[1761892387414,0.47570589,109830.0,109820.0,0.29142048]
[1761892387651,0.34823617,109830.0,109820.0,0.29142048]
[1761892388260,0.47570589,109830.0,109820.0,0.29142048]
[1761892388484,0.47570589,109830.0,109820.0,0.16393915]
[1761892389346,0.47570589,109830.0,109820.0,0.29142048]
[1761892390124,0.12750235,109840.0,109830.0,0.12746972]
[1761892390345,0.52237362,109840.0,109830.0,0.07863604]
[1761892391406,0.52337362,109840.0,109830.0,0.07863604]
[1761892391589,0.12850235,109840.0,109830.0,0.07863604]
[1761892392190,0.52337362,109840.0,109830.0,0.07863604]
[1761892392623,0.52237362,109840.0,109830.0,0.07863604]
[1761892393018,0.91824489,109840.0,109830.0,0.07863604]
[1761892393166,0.52337362,109840.0,109830.0,0.07863604]
[1761892393383,0.52237362,109840.0,109830.0,0.07863604]
[1761892393809,0.52237362,109840.0,109830.0,0.07963604]
[1761892394418,0.52237362,109840.0,109830.0,0.08063604]
[1761892394980,0.91724489,109840.0,109830.0,0.08063604]
[1761892395197,0.14034235,109840.0,109830.0,0.002]
[1761892395412,0.93008489,109840.0,109830.0,0.002]
[1761892395638,3.69576209,109840.0,109830.0,0.002]
[1761892395851,3.72405571,109840.0,109830.0,0.002]
[1761892396065,3.90369373,109840.0,109830.0,0.002]
[1761892396514,3.90369373,109840.0,109830.0,0.001]
[1761892396744,3.90669373,109840.0,109830.0,0.001]
[1761892397154,2.62746972,109830.0,109820.0,0.0008874]
[1761892397357,2.92363226,109830.0,109820.0,0.0008874]
[1761892397565,2.98915181,109830.0,109820.0,0.0008874]
[1761892398741,3.41997082,109830.0,109820.0,0.0008874]
[1761892399170,3.42197082,109830.0,109820.0,0.0008874]
[1761892405327,3.49086454,109830.0,109820.0,0.0008874]
[1761892410477,3.09599327,109830.0,109820.0,0.0008874]
[1761892411405,2.97536833,109830.0,109820.0,0.0008874]
[1761892411545,2.94707471,109830.0,109820.0,0.0008874]
[1761892412082,2.94607471,109830.0,109820.0,0.0008874]
[1761892412288,0.94407471,109830.0,109820.0,0.0008874]
[1761892413094,0.54920344,109830.0,109820.0,0.0008874]
[1761892413328,0.94407471,109830.0,109820.0,0.0008874]
[1761892413746,0.87518099,109830.0,109820.0,0.0008874]
[1761892414780,0.48030972,109830.0,109820.0,0.0008874]
[1761892416088,0.87518099,109830.0,109820.0,0.0008874]
[1761892416949,0.48030972,109830.0,109820.0,0.0008874]
[1761892417388,0.47388972,109830.0,109820.0,0.0168674]
[1761892417704,0.12746972,109830.0,109820.0,0.44792867]
[1761892418119,0.13388972,109830.0,109820.0,0.44792867]
[1761892418347,0.13388972,109830.0,109820.0,0.0286174]
[1761892418564,0.13388972,109830.0,109820.0,0.0296174]
[1761892418765,0.13388972,109830.0,109820.0,0.0306174]
[1761892419204,0.52876099,109830.0,109820.0,0.0306174]
[1761892419649,0.47388972,109830.0,109820.0,0.0028874]
[1761892419842,0.86876099,109830.0,109820.0,0.0028874]
[1761892421869,0.60068917,109830.0,109820.0,0.0028874]
[1761892422094,1.41829473,109830.0,109820.0,0.0028874]
[1761892423381,1.34702083,109830.0,109820.0,0.0018874]
[1761892423588,1.25720182,109830.0,109820.0,0.0018874]
[1761892424175,1.25720182,109830.0,109820.0,0.0008874]
[1761892425475,1.25078182,109830.0,109820.0,0.0008874]
[1761892427562,3.25078182,109830.0,109820.0,0.0008874]
[1761892433194,3.27034631,109830.0,109820.0,0.0008874]
[1761892434301,3.34012092,109830.0,109820.0,0.0008874]
[1761892436272,0.89512472,109830.0,109820.0,0.0008874]
[1761892436452,0.8672617,109830.0,109820.0,0.0008874]
[1761892436648,0.47239043,109830.0,109820.0,0.0008874]
[1761892436902,0.8672617,109830.0,109820.0,0.0008874]
[1761892437653,0.47239043,109830.0,109820.0,0.0008874]
[1761892437853,0.8672617,109830.0,109820.0,0.0008874]
[1761892439350,1.26213297,109830.0,109820.0,0.0008874]
[1761892440244,0.79748709,109830.0,109820.0,0.0160474]
[1761892440473,0.79748709,109830.0,109820.0,0.03329214]
[1761892440727,0.79748709,109830.0,109820.0,0.0281474]
[1761892440942,0.79748709,109830.0,109820.0,0.0514474]
[1761892442016,0.79748709,109830.0,109820.0,0.0281474]
[1761892442210,0.79748709,109830.0,109820.0,0.0129874]
[1761892442389,0.79748709,109830.0,109820.0,0.0281474]
[1761892443364,0.79742482,109830.0,109820.0,0.0281474]
[1761892444291,0.79742482,109830.0,109820.0,0.0514474]
[1761892445031,0.79742482,109830.0,109820.0,0.0281474]
[1761892445212,0.79742482,109830.0,109820.0,0.0514474]
[1761892445409,0.79742482,109830.0,109820.0,0.07055137]
[1761892445831,0.79742482,109830.0,109820.0,0.0514474]
[1761892446255,0.79742482,109830.0,109820.0,0.0524474]
[1761892448200,0.79742482,109830.0,109820.0,0.0534474]
[1761892452234,0.40261582,109830.0,109820.0,0.0534474]
[1761892452484,0.79742482,109830.0,109820.0,0.0534474]
[1761892453131,0.40261582,109830.0,109820.0,0.16257038]
[1761892453578,0.79742482,109830.0,109820.0,0.16257038]
[1761892454666,0.40261582,109830.0,109820.0,0.16257038]
[1761892454883,0.79742482,109830.0,109820.0,0.16257038]
[1761892459675,0.40261582,109830.0,109820.0,0.16257038]
[1761892459892,0.40261582,109830.0,109820.0,0.29005171]
[1761892460181,0.40261582,109830.0,109820.0,0.16257038]
[1761892460392,0.40261582,109830.0,109820.0,0.29005171]
[1761892460564,0.40261582,109830.0,109820.0,0.16257038]
[1761892461650,0.40261582,109830.0,109820.0,0.29005171]
[1761892461853,0.40261582,109830.0,109820.0,0.16257038]
[1761892462759,0.40261582,109830.0,109820.0,0.29005171]
[1761892464155,0.40261582,109830.0,109820.0,0.16257038]
[1761892470128,0.79742482,109830.0,109820.0,0.11201038]
[1761892473467,0.79742482,109830.0,109820.0,0.02219137]
[1761892473646,0.82528784,109830.0,109820.0,0.0028874]
[1761892475762,0.82528784,109830.0,109820.0,0.0190374]
[1761892476597,0.43047884,109830.0,109820.0,0.0190374]
[1761892476857,0.82528784,109830.0,109820.0,0.0190374]
[1761892478734,0.55014174,109830.0,109820.0,0.0190374]
[1761892479337,0.15533274,109830.0,109820.0,0.0313174]
[1761892479539,0.55014174,109830.0,109820.0,0.0313174]
[1761892481253,0.15533274,109830.0,109820.0,0.0313174]
[1761892481470,0.55014174,109830.0,109820.0,0.0313174]
[1761892487157,0.12746972,109830.0,109820.0,0.15130415]
[1761892487587,0.52227872,109830.0,109820.0,0.15130415]
[1761892491322,0.32530425,109830.0,109820.0,0.15130415]
[1761892491527,0.52227872,109830.0,109820.0,0.15130415]
[1761892496512,0.52227872,109830.0,109820.0,0.14630415]
[1761892500752,0.12746972,109830.0,109820.0,0.14630415]
[1761892500972,0.52227872,109830.0,109820.0,0.14630415]
[1761892503007,0.52439872,109830.0,109820.0,0.12278415]
[1761892503212,0.12748133,109820.0,109810.0,0.0121]
[1761892503413,0.12748133,109820.0,109800.0,0.01214839]
[1761892503414,0.12749294,109810.0,109800.0,0.01214839]
[1761892503599,0.52455079,109810.0,109800.0,0.1019674]